Cogmind - Beta 16 --- EXPLORER MODE // 2025.12.16 @ 12:02:17 Player: K.K.Y. Result: Destroyed by Autobeam Turret with Autobeam Performance ------------- Evolutions (0) 0 Regions Visited (3) 600 Robots Destroyed (55) 275 Value Destroyed (1249) 1249 Prototype IDs (12) 240 Alien Tech Used (0) 0 Bonus (0) 0 TOTAL SCORE: 2364 Bonus ------- None Cogmind --------- Core Integrity 0/250 Matter 300/300 Energy 244/250 System Corruption 0% Temperature Cool (6) Movement Rolling (100) Location -10/Subcaves Parts ------- > --- POWER (1) -------- Ion Engine > --- PROPULSION (3) --- Wheel Subdweller Monowheel Subdweller Monowheel > --- UTILITY (2) ------ Medium Storage Unit Core Shielding > --- WEAPON (2) ------- Makeshift Laser Makeshift Sword > --- INVENTORY (10) --- Improved Heat Sink Cargo Storage Unit Humpback Experimental Sensor Array Improved Terrain Scanner ECM Suite Makeshift System Shield Rainbow Chip Peak State ------------ > --- POWER ------------ Ion Engine > --- PROPULSION ------- Wheel Subdweller Monowheel Subdweller Monowheel > --- UTILITY ---------- Medium Storage Unit Core Shielding > --- WEAPON ----------- Makeshift Laser Makeshift Sword > --- INVENTORY -------- Improved Heat Sink Cargo Storage Unit Humpback Experimental Sensor Array Improved Terrain Scanner ECM Suite Makeshift System Shield Rainbow Chip [Rating: 19] Favorites ----------- Power Improved Ion Engine Engine Improved Ion Engine Propulsion Light Treads Treads Light Treads Wheel Subdweller Monowheel Utility Medium Storage Unit Device ECM Suite Storage Medium Storage Unit Protection Core Shielding Weapon Medium Laser Energy Gun Medium Laser Ballistic Gun Assault Rifle Ballistic Cannon Battle Cannon Slashing Weapon Makeshift Sword Build | -11 -10 -10 -10 ------- Run | Yrd Mat Min Sub Slots Evolved 1 | . 1 . . Power . | . . . . Propulsion 1 | . 1 . . Utility . | . . . . Weapon . | . . . . Parts Attached 29 | 8 3 4 14 Power 5 | 1 1 1 2 Engine 5 | 1 1 1 2 Core . | . . . . Reactor . | . . . . Propulsion 12 | 2 1 3 6 Treads 8 | 2 1 3 2 Leg . | . . . . Wheel 4 | . . . 4 Hover . | . . . . Flight . | . . . . Utility 4 | 3 . . 1 Device 1 | 1 . . . Storage 1 | 1 . . . Processor . | . . . . Hackware . | . . . . Protection 2 | 1 . . 1 Artifact . | . . . . Weapon 8 | 2 1 . 5 Energy Gun 4 | 1 1 . 2 Energy Cannon . | . . . . Ballistic Gun 2 | 1 . . 1 Ballistic Cannon 1 | . . . 1 Launcher . | . . . . Special Weapon . | . . . . Impact Weapon . | . . . . Slashing Weapon 1 | . . . 1 Piercing Weapon . | . . . . Special Melee Weapon . | . . . . Unidentified Prototypes . | . . . . Parts Lost 6 | . . . 6 Power 1 | . . . 1 Propulsion 4 | . . . 4 Utility . | . . . . Weapon 1 | . . . 1 Highest Loss Streak 2 | . . . 2 To Critical Strikes . | . . . . Average Backups 8 | 4 7 9 8 Power . | . . . . Propulsion . | . . . . Utility 6 | 2 5 7 7 Weapon . | 1 2 1 . Tool/Special . | . . . . Unused Backups 12 | . 1 2 9 Power . | . . . . Propulsion . | . . . . Utility 9 | . . 1 8 Weapon 3 | . 1 1 1 Tool/Special . | . . . . Average Slot Usage (%) 93 | . 96 100 90 Engine 11 | . 12 12 11 Treads 28 | . 33 37 25 Wheel 2 | . . . 3 Storage 12 | . 12 12 12 Protection 12 | . 12 12 12 Energy Gun 19 | . 21 25 18 Ballistic Cannon 2 | . . . 3 Slashing Weapon 1 | . . . 2 Peak Build Rating 19 | 7 9 11 19 Average Rating 12 | 5 8 10 14 On Entrance 6 | . 7 9 11 Avg Prop Armor Cover (%) 8 | . . . 8 Naked Turns . | . . . . Heaviest Build 24 | 19 20 22 24 Greatest Support 60 | 40 60 60 60 Greatest Overweight (x) 6 | 3 . . 6 Average Overweight (x) . | . . . . Largest Inventory Capacity 10 | 10 10 10 10 Average Capacity 9 | 9 10 10 10 Most Carried 10 | 9 10 10 10 Average Carried 9 | 4 8 9 9 Final Capacity 10 | 10 10 10 10 Final Carried 10 | 5 10 10 10 Class Distribution -------------------- 100% | Hacker-Mutant Dominant Class ---------------- Hacker-Mutant | -10/Materials Hacker-Mutant | -10/Mines Hacker-Mutant | -10/Subcaves Resources | -11 -10 -10 -10 ----------- Run | Yrd Mat Min Sub Matter Collected 800 | 322 44 48 386 Remotely . | . . . . Salvage Created 1689 | 200 501 208 780 Parts 114 | 19 35 15 45 Haulers Intercepted 2 | . 2 . . Recyclers Shooed . | . . . . Parts Field Recycled . | . . . . Retrieved Matter . | . . . . Parts Self-Destructed . | . . . . Prevented . | . . . . Parts Restored . | . . . . Kills | -11 -10 -10 -10 ------- Run | Yrd Mat Min Sub Combat Hostiles Destroyed 39 | . 8 8 23 Melee 2 | . . . 2 Guns 36 | . 8 8 20 Cannons 1 | . . . 1 Classes Destroyed 10 | 2 6 1 1 Worker 2 | . 1 1 . Builder 1 | . 1 . . Tunneler 7 | 7 . . . Hauler 2 | . 2 . . Recycler 2 | 1 1 . . Watcher 2 | . 2 . . Swarmer 14 | . 4 6 4 Grunt 6 | . 4 . 2 Sentry 3 | . . 2 1 Subdweller 16 | . . . 16 Best Kill Streak 6 | 5 6 2 4 Combat Bots Only 4 | . 4 2 4 Max Kills in Single Turn 2 | 2 1 1 1 Gunslinging . | . . . . Exploded . | . . . . Melee 1 | . . . 1 Uniques/NPCs Destroyed . | . . . . Combat | -11 -10 -10 -10 -------- Run | Yrd Mat Min Sub Hostile Shots Fired 219 | . 28 31 160 Missed 63 | . 10 9 44 Hits 156 | . 18 22 116 Projectile 156 | . 18 22 116 AOE 4 | . . . 4 Critical Strikes 3 | . . . 3 Damage Taken 1662 | . 161 133 1368 Core 251 | . 3 13 235 Absorbed by Shields . | . . . . Redirected to Shielding 46 | . . 2 44 Ignored by Resistances 1011 | . 98 90 823 Core Remaining (%) 100 | 100 . . . Volleys Fired 180 | 14 37 15 114 Largest 2 | 2 2 2 2 Hottest 215 | 70 100 100 215 Shots Fired 336 | 28 74 30 204 Gun 290 | 28 74 30 158 Cannon 46 | . . . 46 Launcher . | . . . . Special . | . . . . Kinetic 69 | 14 8 . 47 Thermal 267 | 14 66 30 157 Explosive . | . . . . Electromagnetic . | . . . . Robot Hit Streak 45 | 13 14 8 45 Robot Miss Streak 1 | 1 1 1 1 Penetration Max . | . . . . Secondary Targets 4 | . . 1 3 Max Gunslinging Chain 1 | . . 1 1 Shots Hit Robots 222 | 21 58 19 124 Core Hits 80 | 9 21 11 39 Critical Kills . | . . . . Critical Parts Destroyed . | . . . . Critical Strikes 17 | . 3 4 10 Burn 15 | . 3 4 8 Blast 2 | . . . 2 Melee Attacks 19 | . . . 19 Impact . | . . . . Slashing 19 | . . . 19 Piercing . | . . . . Sneak Attacks . | . . . . Combat Hostiles . | . . . . Follow-up Attacks . | . . . . Damage Inflicted 3009 | 268 720 256 1765 Guns 2602 | 268 720 235 1379 Cannons 279 | . . . 279 Explosions . | . . . . Melee 107 | . . . 107 Ramming 21 | . . 21 . Kinetic 433 | 92 62 . 279 Thermal 2448 | 176 658 235 1379 Explosive . | . . . . Electromagnetic . | . . . . Impact . | . . . . Slashing 107 | . . . 107 Piercing . | . . . . Highest Corruption . | . . . . Average Corruption . | . . . . Corruption Purged . | . . . . Corruption Blocked . | . . . . Overload Shots 19 | . . . 19 Effects 7 | . . . 7 Energy Bleed 3 | . . . 3 Heat Surge 3 | . . . 3 Short Circuit 1 | . . . 1 Overflow Damage . | . . . . Projectiles . | . . . . Explosions . | . . . . Melee . | . . . . Knockbacks 5 | . . . 5 Impact . | . . . . Kinetic 4 | . . . 4 Secondary 1 | . . . 1 Self-Inflicted Damage . | . . . . Shots . | . . . . Rammed 4 | . 1 3 . Targets Rammed 4 | . 1 3 . Kicked . | . . . . Crushed . | . . . . Highest Temperature 691 | 72 225 168 691 Average Temperature 95 | 25 71 70 174 Received Heat Transfer 721 | . 84 27 610 Effects 12 | . . . 12 Interference 1 | . . . 1 Matter Decay 1 | . . . 1 Damage (minor) 1 | . . . 1 Damage (major) 9 | . . . 9 Siege Activations . | . . . . Martial Activations . | . . . . Shielding Activations . | . . . . Robots Disrupted . | . . . . Combat Hostiles . | . . . . Robots Corrupted . | . . . . Combat Hostiles . | . . . . Parts Fried . | . . . . Impact Corruptions . | . . . . Robots Melted 1 | . 1 . . Combat Hostiles . | . . . . Parts Melted 19 | 1 6 8 4 Heat Transferred 7432 | 518 2183 999 3732 Parts Sabotaged . | . . . . Parts Stolen . | . . . . Parts Stripped . | . . . . Power Chain Reactions . | . . . . Alert | -11 -10 -10 -10 ------- Run | Yrd Mat Min Sub Maximum Alert Level . | . . . . Low Security (%) 100 | 100 100 100 . Level 1 . | . . . . Level 2 . | . . . . Level 3 . | . . . . Level 4 . | . . . . Level 5 . | . . . . High Security . | . . . . Max Security . | . . . . Peak Influence 115 | 15 115 50 . Initial . | . . . . Average 9 | . 23 4 . Influence Increases 679 | 40 249 195 195 Destroy 0b10 Robot/C 460 | . 160 160 140 Destroy 0b10 Robot/NC 80 | 40 35 5 . Destroy Leader 78 | . 38 30 10 Destroy Structure 1 | . 1 . . Lose Combat Pursuer 60 | . 15 . 45 Influence Decreases 569 | 40 249 195 85 Time Decay 569 | 40 249 195 85 Squads Dispatched . | . . . . Investigation . | . . . . Extermination . | . . . . Reinforcement . | . . . . Assault . | . . . . Garrison . | . . . . Intercept . | . . . . Searches Triggered . | . . . . Construction Impeded . | . . . . Haulers Reinforced . | . . . . Active Scanning Responses . | . . . . Cargo Convoy Interrupts . | . . . . Stealth | -11 -10 -10 -10 --------- Run | Yrd Mat Min Sub Distress Signals 1 | . 1 . . Communications Jammed . | . . . . Distress Signals . | . . . . Times Spotted 48 | . 11 8 29 Peak Tracking Total 6 | . 4 2 6 Tactical Retreats 3 | . 1 . 2 Traps | -11 -10 -10 -10 ------- Run | Yrd Mat Min Sub Traps Triggered 2 | . 2 . . Indirectly . | . . . . Trap Hack Attempts . | . . . . Triggered . | . . . . Disarmed . | . . . . Reprogrammed . | . . . . Reused . | . . . . Traps Extracted . | . . . . Installed . | . . . . Triggered . | . . . . Machines | -11 -10 -10 -10 ---------- Run | Yrd Mat Min Sub Machines Disabled 1 | . . . 1 Max in Single Turn 1 | . . . 1 Machines Repaired . | . . . . Machines Dismantled . | . . . . Machines Sabotaged . | . . . . Overloaded Fab Kills . | . . . . Hacking | -11 -10 -10 -10 --------- Run | Yrd Mat Min Sub Machines Accessed 4 | . . . 4 Terminals . | . . . . Fabricators . | . . . . Repair Stations . | . . . . Recycling Units . | . . . . Scanalyzers . | . . . . Garrison Access . | . . . . Total Hacks 7 | . . . 7 Successful 7 | . . . 7 Failed . | . . . . Catastrophic . | . . . . Database Lockouts . | . . . . Manual . | . . . . Terminals . | . . . . Fabricators . | . . . . Repair Stations . | . . . . Recycling Units . | . . . . Scanalyzers . | . . . . Garrison Access . | . . . . Terminal Hacks 7 | . . . 7 Record 4 | . . . 4 Open Door 1 | . . . 1 Proto ID Catalog 1 | . . . 1 Release Object 1 | . . . 1 Fabricator Hacks . | . . . . Repair Station Hacks . | . . . . Recycling Unit Hacks . | . . . . Scanalyzer . | . . . . Garrison Access Hacks . | . . . . Unauthorized Hacks . | . . . . Terminals . | . . . . Fabricators . | . . . . Repair Stations . | . . . . Recycling Units . | . . . . Scanalyzers . | . . . . Garrison Access . | . . . . Data Cores Recovered . | . . . . Used . | . . . . Hacking Detections . | . . . . Full Trace Events . | . . . . Feedback Events . | . . . . Feedback Blocked . | . . . . Robot Schematics Acquired . | . . . . Robots Built . | . . . . Authchips . | . . . . Time . | . . . . Total Robot Build Rating . | . . . . Part Schematics Acquired . | . . . . Parts Built . | . . . . Authchips . | . . . . Time . | . . . . Total Part Build Rating . | . . . . Part Studies Acquired . | . . . . Parts Repaired . | . . . . Time . | . . . . Parts Recycled . | . . . . Recycled Matter . | . . . . Retrieved Matter . | . . . . Retrieved Components . | . . . . Parts Scanalyzed . | . . . . Part Schematics Acquired . | . . . . Parts Damaged . | . . . . Bothacking | -11 -10 -10 -10 ------------ Run | Yrd Mat Min Sub Used RIF Installer . | . . . . Robots Hacked . | . . . . Non-combat . | . . . . Combat . | . . . . Robot Hacks Applied . | . . . . Relay Couplers Released . | . . . . Fabnet Peak Effective % . | . . . . Robots Rewired . | . . . . Allies Hacked . | . . . . Hacks Repelled . | . . . . Allies | -11 -10 -10 -10 -------- Run | Yrd Mat Min Sub Total Allies . | . . . . Largest Group . | . . . . Highest-Rated Group . | . . . . Highest-Rated Ally . | . . . . Total Orders . | . . . . Ally Attacks . | . . . . Total Damage . | . . . . Kills . | . . . . Allies Corrupted . | . . . . Allies Melted . | . . . . Intel | -11 -10 -10 -10 ------- Run | Yrd Mat Min Sub Active Infowar (turns) 38 | 38 . . . ECM 38 | 38 . . . Robot Analysis Total . | . . . . Derelict Logs Recovered 1 | . . . 1 Drone Launches . | . . . . Drone Recoveries . | . . . . Exploration | -11 -10 -10 -10 ------------- Run | Yrd Mat Min Sub Turns Passed 7048 | 269 578 1289 4912 Spaces Moved 3261 | 118 280 750 2113 Core 106 | 45 . . 61 Treads 2732 | 73 280 750 1629 Legs . | . . . . Wheels 423 | . . . 423 Hover . | . . . . Flight . | . . . . Fastest Speed 50 | 50 160 160 95 Average Speed 165 | 147 160 160 169 Slowest Speed 350 | 200 160 160 350 Overloaded Moves . | . . . . Propulsion Burnouts . | . . . . Robots Hopped . | . . . . Potential Cave-ins . | . . . . Cave-ins Triggered . | . . . . Exploration Rate (%) 64 | 5 60 98 95 Regions Visited 3 Branch Regions 2 Pre-discovered Areas 2 | . . . 2 Known Exits Taken 3 | 1 1 1 . Unknown Exits Taken . | . . . . Scrap Searched 8 | . . . 8 Spaces Dug . | . . . . Terrain Destroyed 1 | . . . 1 Melee . | . . . . Projectile 1 | . . . 1 AOE . | . . . . Terrain Rammed . | . . . . Walls Destroyed . | . . . . Machines Disabled . | . . . . Actions | -11 -10 -10 -10 --------- Run | Yrd Mat Min Sub Total 4545 | 185 336 812 3212 Wait 1012 | 34 8 31 939 Move 3258 | 117 279 749 2113 Hop . | . . . . Pick Up 23 | 11 5 3 4 Fast Attach 11 | 1 2 . 8 Attach 7 | 7 . . . Detach 1 | 1 . . . Swap 11 | . 1 4 6 Drop 19 | . 3 7 9 Fire 180 | 14 37 15 114 Melee 19 | . . . 19 Ram . | . . . . Kick . | . . . . Crush 4 | . 1 3 . Escape Stasis . | . . . . Rewire . | . . . . Trap . | . . . . Miscellaneous . | . . . . Route ------- -11/Scrapyard -10/Materials (discovered 3 exits: *Mat x2 / *Min) -10/Mines (discovered 4 exits: *Mat x2 / *Exi / *Sub) -10/Subcaves (discovered 3 exits: *Mat x2 / *Rec) History --------- Turn | Location | Event 9 | -11/Scrapyard | Identified exit to Materials 9 | -11/Scrapyard | Discovered exit to Materials (range 15) 270 | -11/Scrapyard | Entered Materials 270 | -10/Materials | Evolved 1 slot: Propulsion x1 309 | -10/Materials | Build established: Hacker-Mutant 651 | -10/Materials | Identified exit to Materials 651 | -10/Materials | Discovered exit to Materials (range 16) 778 | -10/Materials | Discovered exit to Materials (range 11) 832 | -10/Materials | Identified exit to Mines 832 | -10/Materials | Discovered exit to Mines (range 11) 848 | -10/Materials | Entered Mines 1069 | -10/Mines | Found a damaged Exp. Sensor Array with a note attached 1073 | -10/Mines | Found Prototype Device 1080 | -10/Mines | Deemed a non-threat by the Exiles lab entrance 1080 | -10/Mines | Identified exit to Exiles 1080 | -10/Mines | Discovered exit to Exiles (range 5) 1334 | -10/Mines | Identified exit to Subcaves 1334 | -10/Mines | Discovered exit to Subcaves (range 15) 1416 | -10/Mines | Joined a pair of Derelicts in attacking an 0b10 outpost 1645 | -10/Mines | Discovered exit to Materials (range 13) 1990 | -10/Mines | Discovered exit to Materials (range 7) 2137 | -10/Mines | Entered Subcaves 2138 | -10/Subcaves | Approached by a straggling Scientist 2216 | -10/Subcaves | Learned location of 1 exit from Materials 2301 | -10/Subcaves | Identified exit to Materials 2301 | -10/Subcaves | Discovered exit to Materials (range 9) 3475 | -10/Subcaves | Shifting Twisted Machinery released Mak. Laser 3475 | -10/Subcaves | Shifting Twisted Machinery released Sub. Machine Gun 3867 | -10/Subcaves | Ambushed by angry Subdweller bent on revenge 3889 | -10/Subcaves | Core integrity fell below 50% 4021 | -10/Subcaves | A swath of the cavern ceiling suddenly collapsed 4608 | -10/Subcaves | Shifting Twisted Machinery released Piercing Trap 4633 | -10/Subcaves | Shifting Twisted Machinery released Battle Rifle 4926 | -10/Subcaves | Shifting Twisted Machinery released Sub. Optics 4957 | -10/Subcaves | Visited 4L-MR0's lab 4975 | -10/Subcaves | Found Rainbow Chip 5027 | -10/Subcaves | Shifting Twisted Machinery released Mak. System Shield 5073 | -10/Subcaves | Discovered exit to Materials (range 4) 5210 | -10/Subcaves | Learned location of Zion (-6) 5210 | -10/Subcaves | Met a Zionite searching for "candidates" 5854 | -10/Subcaves | Visited Clippyterm 5862 | -10/Subcaves | Learned location of Extension (-6) 5957 | -10/Subcaves | Disturbed a concealed Subdweller 5962 | -10/Subcaves | Disturbed a concealed Subdweller 6314 | -10/Subcaves | Core integrity fell below 20% 6558 | -10/Subcaves | A swath of the cavern ceiling suddenly collapsed 7018 | -10/Subcaves | Identified exit to Recycling 7018 | -10/Subcaves | Discovered exit to Recycling (range 10) 7049 | -10/Subcaves | Destroyed by Autobeam Turret with Autobeam Last Messages --------------- 06536_ Acquired Sub. Monowheel. 06538_ Acquired 10 matter. 06541_ Acquired Sub. Monowheel. A swath of the cavern ceiling suddenly collapses. 06625_ Sub. Monowheel shoots sparks and powers down. 06669_ Acquired 10 matter. 06849_ Acquired Wheel. 06854_ Acquired Sub. Monowheel. 06953_ Acquired 8 matter. 07018_ EXIT=FOUND: RECYCLING 07020_ S-10 Pest springs to life. 07023_ S-10 Pest destroyed. 07027_ S-10 Pest suffers critical hit (Burn). 07029_ S-10 Pest destroyed. 07035_ Acquired 12 matter. 07046_ Autobeam Turret suffers critical hit (Burn). Map ----- +----------------------------------------------------+ | ?????###### #??????????????????????????????????? | | ?????# #??????????????????????????????????? | | ?????## ## # #?????????????????????????????????? | | ??????# #######?????????????????????????????????? | | ??????# #???????????????????????????????????????? | | ?????## #????????#??????????????????????????????? | | ???### ##????? ### ???????????????????????????? | | ??## ##### ???????????????????????????? | | ?## # ?????????????????????????? | | ?# < ????????????????????????? | | ?## ????????????????????????? | | ??## # #????????????????????????? | | ???### #### #????????????????????????? | | ????# #???? #????????????????????????? | | ????## ##?????##### #????????????????????????? | | ??### #?? ##????# #????????????????????????? | | ?## #?? ##???# ????????????????????????? | | ?# ##? ##??# ?????????????????????????? | | ?## ## #??# ?????????????????????????? | | ??# #?## #?????????????????????????? | | ??# ###### #?????????????????????????? | | ??# ##??## #?????????????????????????? | | ??## ##???# #?????????????????????????? | | ???## #?????# ######????????????????????? | | ????# ## #?????## ##= ##???????????????????? | | ???## ##? #?????## %@%* #???????????????????? | | ???# #??###??????## *%[ #???????????????????? | | ???# #?#####???#### # #???????????????????? | | ??## #?# #?## ## #??????????????#####? | | ??# #?# ## #### #??????????????# ## | | ??## ##??# #?? ?????????????# | | ??## #???# #?? ????????????# | | ??# ##??# ###?? #???????????# | | ??# #### #???? t "#???????????# ## | | ### ## #??? " " "#???????????## # | | ##??""" """"#???????????## | | ## ##?###>#####???????????# # | | # ## ## ##?####???????????????# # | | # ### ### ###???????????##### | | # # ## ## #### #???###?##### ### | | # # ## ## ##??# #??## #?#% ## | | # # ## #???### ##?# #?# ### | | # % ## #####?## #### ### " | | ## %! ## #### ### ### #### | | ?# ## ## *% ## ## ## ####???## & | | ?## ####### ### ##??????# | | ??# #????# #?# ####???# " | | ??# #???## ###% #### ##??"#### | | ??# ##??## #?# " ### ###????? | | ??## ###### #?# """ """ #### ##???? | +----------------------------------------------------+ Best States ------------- Heat Dissipation 25 Energy Generation 12 Energy Capacity 265 Matter Stores 300 Matter Capacity 300 Sight Range 16 Terrain Scan Density 10 ECM Strength 1 Resistance: KI 35 Resistance: TH 35 Resistance: EX 35 Resistance: EM 35 Resistance: I 35 Resistance: S 35 Resistance: P 35 Core Shielding 20 Evasion (%) 50 Recoil Reduction 3 Offensive Hacking 20 Item Schematics ----------------- None Robot Schematics ------------------ None Fabricated ------------ Nothing Repaired ---------- Nothing Studied --------- None Alien Tech Used ----------------- None Achievements -------------- None Challenges ------------ None Game ------ Seed WardroneZeronetTether Manual? 0 Play Time 00:25:45 Cumulative 200.5 hours Start 2025.12.16 @ 11:40:04 End 2025.12.16 @ 12:02:17 Sessions 1 Manual Loads 0 Difficulty Explorer Special Mode None Game No. 303 Rogue 0 Adventurer 0 Explorer 303 Win Type - Total 0 Types 0/0/0/0/0/0/0/0/0/0 Lore% 71 Gallery% 67 Achievement% 53 Wizard Run 0 Options --------- Layout 1 ASCII 0 Keyboard 0 Movement Mouse Keybinds 0 Fullscreen 1 Font 24/Smallcaps Map View 50x35 Zoom Use 0% Tactical HUD 1 Map Filters NONE Filters NONE Steam 1 RUN: e4683620-da76-4f40-8f63-8aa6c49b7872